Cogmind - Beta 16.1 @@@ ROGUE MODE // 2026.02.14 @ 21:34:53 Player: Skergy Result: Destroyed by S-10 Pest with Light Assault Rifle Performance ------------- Evolutions (0) 0 Regions Visited (2) 400 Robots Destroyed (31) 155 Value Destroyed (760) 760 Prototype IDs (0) 0 Alien Tech Used (0) 0 Bonus (0) 0 TOTAL SCORE: 1315 Bonus ------- None Cogmind --------- Core Integrity 0/250 Matter 300/300 Energy 199/200 System Corruption 0% Temperature Cool (0) Movement Rolling (130) Ox2 Location -10/Subcaves Parts ------- > --- POWER (1) -------- Subdweller Power Source > --- PROPULSION (2) --- Spiked Treads Compact Wheel > --- UTILITY (2) ------ Large Storage Unit Makeshift Light Armor Plating > --- WEAPON (2) ------- Subdweller Machine Gun Makeshift Axe > --- INVENTORY (15) --- Ion Engine Ion Engine Light Treads Wheel Subdweller Monowheel High-capacity Matter Pod (200) Structural Scanner Improved Terrain Scanner ECM Suite Riot Gun Beam Cannon Subdweller Beam Cannon Subdweller Machine Gun Grenade Launcher Peak State ------------ > --- POWER ------------ Subdweller Power Source > --- PROPULSION ------- Spiked Treads Compact Wheel > --- UTILITY ---------- Large Storage Unit Makeshift Light Armor Plating > --- WEAPON ----------- Subdweller Machine Gun Makeshift Axe > --- INVENTORY -------- Ion Engine Ion Engine Light Treads Wheel Subdweller Monowheel High-capacity Matter Pod Structural Scanner Improved Terrain Scanner ECM Suite Riot Gun Beam Cannon Subdweller Beam Cannon Subdweller Machine Gun Grenade Launcher [Rating: 18] Favorites ----------- Power Ion Engine Engine Ion Engine Propulsion Light Treads Treads Light Treads Wheel Compact Wheel Utility Small Storage Unit Device Seismic Detector Storage Small Storage Unit Protection Light Armor Plating Weapon Assault Rifle Energy Gun Particle Gun Ballistic Gun Assault Rifle Launcher Grenade Launcher Special Weapon Mining Laser Slashing Weapon Makeshift Axe Build | -11 -10 -10 ------- Run | Yrd Mat Sub Slots Evolved . | . . . Power . | . . . Propulsion . | . . . Utility . | . . . Weapon . | . . . Parts Attached 25 | 7 8 10 Power 4 | 1 1 2 Engine 4 | 1 1 2 Core . | . . . Reactor . | . . . Propulsion 5 | 2 2 1 Treads 4 | 2 1 1 Leg . | . . . Wheel 1 | . 1 . Hover . | . . . Flight . | . . . Utility 7 | 2 3 2 Device 2 | 1 . 1 Storage 2 | 1 1 . Processor . | . . . Hackware . | . . . Protection 3 | . 2 1 Artifact . | . . . Weapon 9 | 2 2 5 Energy Gun 1 | . 1 . Energy Cannon . | . . . Ballistic Gun 5 | 2 1 2 Ballistic Cannon . | . . . Launcher 1 | . . 1 Special Weapon 1 | . . 1 Impact Weapon . | . . . Slashing Weapon 1 | . . 1 Piercing Weapon . | . . . Special Melee Weapon . | . . . Unidentified Prototypes . | . . . Parts Lost 6 | . 4 2 Power . | . . . Propulsion 1 | . 1 . Utility 2 | . 1 1 Weapon 3 | . 2 1 Highest Loss Streak 3 | . 3 1 To Critical Strikes . | . . . Average Backups 9 | 3 7 12 Power 1 | . 1 1 Propulsion 1 | 1 1 2 Utility 2 | . 2 4 Weapon 3 | . 3 4 Tool/Special . | . . . Unused Backups 13 | . 1 12 Power 2 | . . 2 Propulsion 4 | . . 4 Utility 4 | . 1 3 Weapon 3 | . . 3 Tool/Special . | . . . Average Slot Usage (%) 99 | . 98 99 Engine 14 | . 14 14 Treads 17 | . 19 14 Wheel 10 | . 8 14 Device 5 | . 5 6 Storage 14 | . 14 14 Protection 7 | . 8 7 Energy Gun 5 | . 8 . Ballistic Gun 19 | . 19 19 Launcher 2 | . . 5 Peak Build Rating 18 | 7 9 18 Average Rating 8 | 4 8 10 On Entrance 5 | . 7 9 Avg Prop Armor Cover (%) 11 | . 10 11 Naked Turns . | . . . Heaviest Build 36 | 13 33 36 Greatest Support 40 | 40 40 20 Greatest Overweight (x) 2 | . 2 2 Average Overweight (x) 1 | . . 1 Largest Inventory Capacity 15 | 8 15 15 Average Capacity 11 | 7 8 15 Most Carried 15 | 6 9 15 Average Carried 9 | 3 7 12 Final Capacity 15 | 8 15 15 Final Carried 14 | 6 9 14 Class Distribution -------------------- 96% | Mutant 3% | Derelict-Mutant Dominant Class ---------------- Mutant | -10/Materials Mutant | -10/Subcaves Resources | -11 -10 -10 ----------- Run | Yrd Mat Sub Matter Collected 1122 | 300 452 370 Remotely . | . . . Salvage Created 888 | 116 525 247 Parts 61 | 6 39 16 Haulers Intercepted . | . . . Recyclers Shooed . | . . . Parts Field Recycled . | . . . Retrieved Matter . | . . . Parts Self-Destructed . | . . . Prevented . | . . . Parts Restored . | . . . Kills | -11 -10 -10 ------- Run | Yrd Mat Sub Combat Hostiles Destroyed 26 | . 18 8 Melee 2 | . . 2 Guns 21 | . 18 3 AOE 3 | . . 3 Classes Destroyed 7 | 2 4 1 Worker 2 | . 2 . Tunneler 1 | 1 . . Recycler 1 | 1 . . Watcher 1 | . 1 . Swarmer 9 | . 9 . Grunt 9 | . 9 . Subdweller 8 | . . 8 Best Kill Streak 4 | 2 4 2 Combat Bots Only 4 | . 4 2 Max Kills in Single Turn 1 | 1 1 1 Gunslinging . | . . . Exploded 1 | . . 1 Melee 1 | . . 1 Uniques/NPCs Destroyed . | . . . Combat | -11 -10 -10 -------- Run | Yrd Mat Sub Hostile Shots Fired 151 | . 124 27 Missed 29 | . 26 3 Hits 122 | . 98 24 Projectile 122 | . 98 24 Critical Strikes 2 | . . 2 Damage Taken 1411 | . 968 443 Core 253 | . 135 118 Absorbed by Shields . | . . . Redirected to Shielding 33 | . 33 . Core Remaining (%) 100 | 100 . . Volleys Fired 80 | 5 61 14 Largest 2 | 2 2 2 Hottest 100 | 40 85 100 Shots Fired 153 | 10 117 26 Gun 145 | 10 117 18 Cannon . | . . . Launcher 6 | . . 6 Special 2 | . . 2 Kinetic 125 | 10 97 18 Thermal 22 | . 20 2 Explosive 6 | . . 6 Electromagnetic . | . . . Robot Hit Streak 13 | 3 13 8 Robot Miss Streak 5 | 2 5 1 Penetration Max . | . . . Secondary Targets 2 | . 2 . Max Gunslinging Chain 1 | . 1 . Shots Hit Robots 100 | 5 71 24 Core Hits 46 | 2 31 13 Critical Kills . | . . . Critical Parts Destroyed 1 | . 1 . Critical Strikes 2 | . 2 . Burn 1 | . 1 . Destroy 1 | . 1 . Melee Attacks 5 | . . 5 Impact . | . . . Slashing 5 | . . 5 Piercing . | . . . Sneak Attacks . | . . . Combat Hostiles . | . . . Follow-up Attacks . | . . . Damage Inflicted 1743 | 77 1000 666 Guns 1308 | 71 1000 237 Cannons . | . . . Explosions 298 | . . 298 Melee 131 | . . 131 Ramming 6 | 6 . . Kinetic 1096 | 71 788 237 Thermal 212 | . 212 . Explosive 298 | . . 298 Electromagnetic . | . . . Impact . | . . . Slashing 131 | . . 131 Piercing . | . . . Highest Corruption . | . . . Average Corruption . | . . . Corruption Purged . | . . . Corruption Blocked . | . . . Overload Shots . | . . . Overflow Damage . | . . . Projectiles . | . . . Explosions . | . . . Melee . | . . . Knockbacks . | . . . Impact . | . . . Kinetic . | . . . Secondary . | . . . Self-Inflicted Damage . | . . . Shots . | . . . Rammed 2 | 2 . . Targets Rammed 2 | 2 . . Kicked . | . . . Crushed . | . . . Highest Temperature 279 | . 279 262 Average Temperature 78 | . 67 172 Received Heat Transfer 753 | . 351 402 Effects 1 | . 1 . Interference 1 | . 1 . Siege Activations . | . . . Martial Activations . | . . . Shielding Activations . | . . . Robots Disrupted . | . . . Combat Hostiles . | . . . Robots Corrupted . | . . . Combat Hostiles . | . . . Parts Fried . | . . . Impact Corruptions . | . . . Robots Melted . | . . . Combat Hostiles . | . . . Parts Melted 1 | . 1 . Heat Transferred 555 | . 555 . Parts Sabotaged . | . . . Parts Stolen . | . . . Parts Stripped . | . . . Power Chain Reactions . | . . . Alert | -11 -10 -10 ------- Run | Yrd Mat Sub Maximum Alert Level 1 | . 1 . Low Security (%) 99 | 100 99 . Level 1 . | . . . Level 2 . | . . . Level 3 . | . . . Level 4 . | . . . Level 5 . | . . . High Security . | . . . Max Security . | . . . Peak Influence 203 | 5 203 . Initial . | . . . Average 104 | 1 117 . Influence Increases 557 | 10 517 30 Destroy 0b10 Robot/C 360 | . 360 . Destroy 0b10 Robot/NC 25 | 10 15 . Destroy Leader 72 | . 72 . Successful Hack 9 | . 9 . Destroy Structure 1 | . 1 . Partial Spotted 30 | . 30 . Lose Combat Pursuer 60 | . 30 30 Influence Decreases 527 | 10 357 160 Entered New Map 77 | . . 77 Time Decay 410 | 10 317 83 Lost Part 40 | . 40 . Squads Dispatched 3 | . 3 . Investigation 2 | . 2 . Extermination . | . . . Reinforcement 1 | . 1 . Assault . | . . . Garrison . | . . . Intercept . | . . . Searches Triggered . | . . . Construction Impeded . | . . . Haulers Reinforced . | . . . Active Scanning Responses . | . . . Cargo Convoy Interrupts . | . . . Stealth | -11 -10 -10 --------- Run | Yrd Mat Sub Distress Signals 3 | . 3 . Communications Jammed . | . . . Distress Signals . | . . . Times Spotted 38 | . 26 12 Peak Tracking Total 6 | . 5 6 Tactical Retreats 2 | . 1 1 Traps | -11 -10 -10 ------- Run | Yrd Mat Sub Traps Triggered 1 | . 1 . Indirectly . | . . . Trap Hack Attempts . | . . . Triggered . | . . . Disarmed . | . . . Reprogrammed . | . . . Reused . | . . . Traps Extracted . | . . . Installed . | . . . Triggered . | . . . Machines | -11 -10 -10 ---------- Run | Yrd Mat Sub Machines Disabled . | . . . Max in Single Turn . | . . . Machines Repaired . | . . . Machines Dismantled . | . . . Machines Sabotaged . | . . . Overloaded Fab Kills . | . . . Hacking | -11 -10 -10 --------- Run | Yrd Mat Sub Machines Accessed 3 | . 3 . Terminals 3 | . 3 . Fabricators . | . . . Repair Stations . | . . . Recycling Units . | . . . Scanalyzers . | . . . Garrison Access . | . . . Total Hacks 11 | . 11 . Successful 3 | . 3 . Failed 8 | . 8 . Catastrophic 2 | . 2 . Database Lockouts . | . . . Manual 11 | . 11 . Terminals 11 | . 11 . Fabricators . | . . . Repair Stations . | . . . Recycling Units . | . . . Scanalyzers . | . . . Garrison Access . | . . . Terminal Hacks . | . . . Fabricator Hacks . | . . . Repair Station Hacks . | . . . Recycling Unit Hacks . | . . . Scanalyzer . | . . . Garrison Access Hacks . | . . . Unauthorized Hacks 3 | . 3 . Terminals 3 | . 3 . Botnet 2 | . 2 . Operators 1 | . 1 . Fabricators . | . . . Repair Stations . | . . . Recycling Units . | . . . Scanalyzers . | . . . Garrison Access . | . . . Data Cores Recovered . | . . . Used . | . . . Hacking Detections 3 | . 3 . Full Trace Events 1 | . 1 . Feedback Events . | . . . Feedback Blocked . | . . . Robot Schematics Acquired . | . . . Robots Built . | . . . Authchips . | . . . Time . | . . . Total Robot Build Rating . | . . . Part Schematics Acquired . | . . . Parts Built . | . . . Authchips . | . . . Time . | . . . Total Part Build Rating . | . . . Part Studies Acquired . | . . . Parts Repaired . | . . . Time . | . . . Parts Recycled . | . . . Recycled Matter . | . . . Retrieved Matter . | . . . Retrieved Components . | . . . Parts Scanalyzed . | . . . Part Schematics Acquired . | . . . Parts Damaged . | . . . Bothacking | -11 -10 -10 ------------ Run | Yrd Mat Sub Used RIF Installer . | . . . Robots Hacked . | . . . Non-combat . | . . . Combat . | . . . Robot Hacks Applied . | . . . Relay Couplers Released . | . . . Fabnet Peak Effective % . | . . . Robots Rewired . | . . . Allies Hacked . | . . . Hacks Repelled . | . . . Allies | -11 -10 -10 -------- Run | Yrd Mat Sub Total Allies . | . . . Largest Group . | . . . Highest-Rated Group . | . . . Highest-Rated Ally . | . . . Total Orders . | . . . Ally Attacks . | . . . Total Damage . | . . . Kills . | . . . Allies Corrupted . | . . . Allies Melted . | . . . Intel | -11 -10 -10 ------- Run | Yrd Mat Sub Active Infowar (turns) 577 | 32 296 249 Structural 249 | . . 249 Seismic 328 | 32 296 . Robot Analysis Total . | . . . Derelict Logs Recovered . | . . . Drone Launches . | . . . Drone Recoveries . | . . . Exploration | -11 -10 -10 ------------- Run | Yrd Mat Sub Turns Passed 1467 | 106 823 538 Spaces Moved 770 | 49 361 360 Core 5 | 5 . . Treads 173 | 44 127 2 Legs . | . . . Wheels 592 | . 234 358 Hover . | . . . Flight . | . . . Fastest Speed 50 | 50 100 115 Average Speed 128 | 148 131 123 Slowest Speed 260 | 160 160 260 Overloaded Moves . | . . . Propulsion Burnouts . | . . . Robots Hopped . | . . . Potential Cave-ins . | . . . Cave-ins Triggered . | . . . Exploration Rate (%) 27 | 3 56 23 Regions Visited 2 Branch Regions 1 Pre-discovered Areas . | . . . Known Exits Taken . | . . . Unknown Exits Taken 2 | 1 1 . Scrap Searched 8 | . . 8 Spaces Dug . | . . . Terrain Destroyed 15 | . . 15 Melee . | . . . Projectile . | . . . AOE 15 | . . 15 Terrain Rammed . | . . . Walls Destroyed . | . . . Machines Disabled . | . . . Actions | -11 -10 -10 --------- Run | Yrd Mat Sub Total 1084 | 68 595 421 Wait 163 | . 154 9 Move 769 | 49 360 360 Hop . | . . . Pick Up 23 | 6 6 11 Fast Attach 10 | 7 3 . Attach 4 | . 2 2 Detach . | . . . Swap 17 | . 4 13 Drop 12 | . 5 7 Fire 80 | 5 61 14 Melee 5 | . . 5 Ram . | . . . Kick . | . . . Crush 1 | 1 . . Escape Stasis . | . . . Rewire . | . . . Trap . | . . . Miscellaneous . | . . . Route ------- -11/Scrapyard -10/Materials (discovered 4 exits: [*Mat x2] / [*Min] / [*Sub]) -10/Subcaves History --------- Turn | Location | Event 2 | -11/Scrapyard | Met Revision 17 10 | -11/Scrapyard | Discovered new exit (range 15) 107 | -11/Scrapyard | Entered Materials 225 | -10/Materials | Discovered new exit (range 6) 317 | -10/Materials | Build established: Mutant 430 | -10/Materials | Discovered new exit (range 15) 434 | -10/Materials | Lost 3 parts (1n1u1w) 638 | -10/Materials | Discovered new exit (range 11) 798 | -10/Materials | Discovered new exit (range 16) 828 | -10/Materials | Core integrity fell below 50% 930 | -10/Materials | Entered Subcaves 1103 | -10/Subcaves | Shifting Twisted Machinery released Flamer 1367 | -10/Subcaves | Disturbed a concealed Subdweller 1435 | -10/Subcaves | Core integrity fell below 20% 1468 | -10/Subcaves | Destroyed by S-10 Pest with Light Assault Rifle Last Messages --------------- 01311_ Found Riot Gun. 01311_ Found 42 Matter. 01314_ Dropped Particle Gun. 01314_ Acquired Riot Gun. 01367_ TZ-84H(R) angrily emerges from the Twisted Machinery. 01374_ Critical hit (Meltdown: +270). 01380_ TZ-84H(R) destroyed. 01384_ Acquired 24 matter. 01395_ Searching scrap... 01395_ Found Mak. Axe. 01395_ Found 40 Matter. 01396_ Acquired 8 matter. 01397_ Dropped Mining Laser. 01398_ Acquired Mak. Axe. 01436_ SH-WMC(R) destroyed. 01438_ Acquired 10 matter. 01438_ Critical hit (Destroy). 01438_ Lgt. Armor Plating destroyed. 01439_ P9-54P(R) destroyed. 01442_ Acquired 10 matter. Map ----- +----------------------------------------------------+ | #"" # #?????????????????????????????? | | ###" ##### ?????????????????????????????? | | ## #####??? ??????????????????????????????? | | [### ## ##??????????????????????????????????????? | | ##### ##??????????????????????????????????????? | | ## #???????? ????????????????????????????? | | ## #??????? ???????????????????????????? | | ?## ###???### ???????? ??????????????????? | | ?## ##????#### ?? #????? ????????????????? | | ?## ##???### ?# ????? ????????????????? | | ### ####### ##?# ????? #????????????????? | | ### ###### ##?# #??? #????????????????? | | ## ##?# ??? #????????????????? | | ## ## #####?# #?? #????????????????? | | ## ### ###???## #?? s #????????????????? | | ## ### ######### ##?s #????????????????? | | ## #### ######## ## #????????????????? | | # ##### ## #s #????????????????? | | ####" ## ## ##???????????????? | | ####&# & #### #???????????????? | | ???# ##"#" ##### ##??????????????? | | ???#| ### ##???# #??????????????? | | ???#"%## ###???# #??????????????? | | ???###### ####???# ###### #?????????????? | | ???????### ##????# ##?????????????????????? | | ???????### ####### @####???????????????????? | | ????????## &=##! ##??????????????????? | | ????????## &!&%*!& #??????????????????? | | ?????????## &#&#& ### ##??????????????????? | | ?????????########## #?### ###???????????????????? | | ??????????#######?####????##?????????????????????? | | ?????????????????????????????????????????????????? | | ?????????????????????????????????????????????????? | | ?????????????????????????????????????????????????? | | ?????????????????????????????????????????????????? | | ?????????????????????????????????????????????????? | | ?????????????????????????????????????????????????? | | ?????????????????????????????????????????????????? | | ?????????????????????????????????????????????????? | | ?????????????????????????????????????????????????? | | ?????????????????????????????????????????????????? | | ?????????????????????????????????????????????????? | | ?????????????????????????????????????????????????? | | ?????????????????????????????????????????????????? | | ?????????????????????????????????????????????????? | | ?????????????????????????????????????????????????? | | | | | | | | | +----------------------------------------------------+ Best States ------------- Heat Dissipation 25 Energy Generation 15 Energy Capacity 250 Matter Stores 300 Matter Capacity 300 Sight Range 16 Terrain Scan Density 10 Armor Coverage 150 Weapon Shielding 33 Evasion (%) 40 Recoil Reduction 2 Item Schematics ----------------- None Robot Schematics ------------------ None Fabricated ------------ Nothing Repaired ---------- Nothing Studied --------- None Alien Tech Used ----------------- None Achievements -------------- None Challenges ------------ None Game ------ Seed GlidesysCompanionActivator Manual? 0 Play Time 00:15:13 Cumulative 127.3 hours Start 2026.02.14 @ 21:06:27 End 2026.02.14 @ 21:34:53 Sessions 1 Manual Loads 0 Difficulty Rogue Special Mode None Game No. 139 Rogue 139 Adventurer 0 Explorer 0 Win Type - Total 4 Types 4/0/0/0/0/0/0/0/0/0 Lore% 68 Gallery% 52 Achievement% 41 Wizard Run 0 Options --------- Layout 0 ASCII 0 Keyboard 1 Movement Vi Keybinds 0 Fullscreen 1 Font 24/Terminus Map View 76x50 Zoom Use 0% Tactical HUD 1 Map Filters NONE Filters NONE Steam 1 RUN: 7ec0440a-6454-490b-98f8-61418ab094cf